[Event "44th Chess Olympiad Women 2022"]
[Site "Chennai"]
[Date "2022.08.03"]
[Round "6.19"]
[White "Narva, Triin"]
[Black "Barbier, Wiebke"]
[Result "1-0"]
[WhiteElo "2066"]
[BlackElo "1970"]
[Annotator "NA RC"]
[PlyCount "63"]
[EventDate "2022.??.??"]
[TimeControl "60"]

1. e4 {[%emt 0:00:03]} d6 {[%emt 0:00:02]} 2. d4 {[%emt 0:00:05]} Nf6 {[%emt 0:
00:00]} 3. Nc3 {[%emt 0:00:06]} e5 {[%emt 0:00:02]} 4. Nf3 {[%emt 0:00:06]}
exd4 {[%emt 0:00:15]} 5. Nxd4 {[%emt 0:00:10]} Be7 {[%emt 0:00:03]} 6. h3 {
[%emt 0:01:20]} O-O {[%emt 0:01:16]} 7. Be3 {[%emt 0:01:09]} c6 {[%emt 0:03:11]
} 8. Qf3 {[%emt 0:32:14]} d5 {[%emt 0:17:21]} 9. exd5 {[%emt 0:20:45]} cxd5 {
[%emt 0:06:47]} 10. g4 {[%emt 0:15:19]} Bb4 {[%emt 0:18:16]} 11. Bd3 {[%emt 0:
00:00]} Nc6 {[%emt 0:09:09]} 12. O-O {[%emt 0:06:59]} Re8 {[%emt 0:12:07]} 13.
Rad1 {[%emt 0:08:15]} a6 {[%emt 0:10:31]} 14. Nce2 {[%emt 0:04:00]} Ne5 {
[%emt 0:03:10]} 15. Qg2 {[%emt 0:00:32]} Qc7 {[%emt 0:06:22]} 16. c3 {[%emt 0:
00:00]} Bf8 {[%emt 0:01:54]} 17. Bb1 {[%emt 0:00:54]} Nc4 {[%emt 0:01:51]} 18.
Bc1 {[%emt 0:00:21]} Be6 {[%emt 0:01:41]} 19. Ng3 {[%emt 0:00:23]} Bd6 {
[%emt 0:00:53]} 20. f4 {[%emt 0:00:53]} Bd7 {[%emt 0:01:16]} 21. g5 {[%emt 0:
00:00]} Ne4 {[%emt 0:01:06]} 22. Nxe4 {[%emt 0:00:07]} dxe4 {[%emt 0:00:02]}
23. Bxe4 {[%emt 0:00:12]} Bxh3 {[%emt 0:01:09]} 24. Bxh7+ {[%emt 0:00:20]} Kxh7
{[%emt 0:00:17]} 25. Qxh3+ {[%emt 0:00:03]} Kg8 {[%emt 0:00:06]} 26. Rf2 {
[%emt 0:00:34]} Qc8 {[%emt 0:02:19]} 27. Qh4 {[%emt 0:01:02]} Ne3 {[%emt 0:00:
00]} 28. Bxe3 {[%emt 0:00:16]} Rxe3 {[%emt 0:00:07]} 29. Rh2 {[%emt 0:00:07]}
Kf8 {[%emt 0:00:12]} 30. Qh8+ {[%emt 0:00:10]} Ke7 {[%emt 0:00:02]} 31. Qxc8 {
[%emt 0:00:07]} Rxc8 {[%emt 0:00:36]} 32. Nf5+ {[%emt 0:00:04]} 1-0

[Event "44th Chess Olympiad Women 2022"]
[Site "Chennai"]
[Date "2022.08.03"]
[Round "6.19"]
[White "Olde, Margareth"]
[Black "Vanduyfhuys, Daria"]
[Result "1-0"]
[WhiteElo "2235"]
[BlackElo "2094"]
[Annotator "TA"]
[PlyCount "147"]
[EventDate "2022.??.??"]
[TimeControl "60"]

{[%evp 20,147,23,8,16,5,7,15,15,18,20,8,8,0,10,4,20,24,541,527,524,450,583,110,
108,111,106,40,43,45,58,53,116,94,79,33,33,33,97,39,38,0,0,0,0,0,0,0,0,0,0,0,0,
0,0,0,0,0,0,0,0,-3,0,0,0,0,0,0,0,0,0,0,0,0,0,0,0,0,0,0,0,0,0,0,0,0,0,0,0,0,0,0,
0,0,0,0,0,0,0,0,687,621,1016,1018,1066,560,893,747,784,729,680,0,0,0,0,0,0,0,
580,580,29971,29973,29972,29974,29973,29974,29986,29987,29987,29988]} 1. d4 {
[%emt 0:00:03]} Nf6 {[%emt 0:00:09]} 2. Nf3 {[%emt 0:00:15]} e6 {[%emt 0:00:12]
} 3. c4 {[%emt 0:00:07]} d5 {[%emt 0:00:06]} 4. g3 {[%emt 0:00:04]} dxc4 {
[%emt 0:00:24]} 5. Bg2 {[%emt 0:00:04]} Nc6 {[%emt 0:00:22]} 6. Qa4 {[%emt 0:
00:00]} Bb4+ {[%emt 0:00:17]} 7. Bd2 {[%emt 0:00:05]} Nd5 {[%emt 0:00:11]} 8.
Bxb4 {[%emt 0:00:32]} Ndxb4 {[%emt 0:00:06]} 9. O-O {[%emt 0:00:12]} Rb8 {
[%emt 0:00:44]} 10. Nc3 {[%emt 0:00:06]} a6 {[%emt 0:03:50]} 11. Ne5 {[%emt 0:
00:00] Threatening a3.} O-O {[%emt 0:02:31] E04: Open Catalan: 5 Nf3.} 12. Nxc6
{[%emt 0:00:09]} (12. Bxc6 {with more complications.} Nxc6 13. Nxc6 bxc6 14.
Qxc4 Rxb2 15. Rab1) 12... Nxc6 {[%emt 0:00:07]} 13. Bxc6 {[%emt 0:00:11]} bxc6
{[%emt 0:00:04] The position is equal.} 14. Qxc4 {[%emt 0:00:09]} Rxb2 {
[%emt 0:03:33]} 15. Rfb1 {[%emt 0:04:54]} Rb6 {[%emt 0:05:47]} 16. Qc5 {
[%emt 0:01:23] [#]} Re8 $146 {[%emt 0:15:30]} ({Predecessor:} 16... h6 17. a4
Re8 18. a5 Rxb1+ 19. Rxb1 Qd7 20. Rb4 f6 21. f3 e5 22. d5 cxd5 23. Nxd5 {
½-½ (38) Hasangatin,R (2512)-Frolyanov,D (2550) Sochi 2016}) 17. a4 {[%emt 0:
00:00]} e5 {[%emt 0:16:41]} 18. dxe5 {[%emt 0:06:48]} f6 $2 {[%emt 0:10:07]} (
18... Qe7 $11 {and Black has nothing to worry.} 19. Qxe7 Rxe7) 19. Rd1 $1 $18 {
[%emt 0:05:16]} Bd7 {[%emt 0:04:15]} 20. Qd4 {[%emt 0:00:58]} Re7 {[%emt 0:03:
52]} 21. e6 $2 {[%emt 0:00:19]} (21. Qc4+ $18 {is the precise move to win.} Kh8
22. e6) 21... c5 $16 {[%emt 0:00:05]} 22. Qc4 {[%emt 0:19:55] White is more
active.} Rbxe6 {[%emt 0:08:12]} 23. Ne4 {[%emt 0:10:41]} (23. Rd5 $16) 23...
Kh8 $14 {[%emt 0:01:01]} 24. Nxc5 {[%emt 0:03:04]} Rc6 {[%emt 0:00:00]} 25. Qb4
{[%emt 0:02:44]} Rb6 {[%emt 0:03:28]} (25... h6 $1 $14) 26. Qa3 {[%emt 0:14:18]
} h6 {[%emt 0:02:32]} 27. a5 {[%emt 0:05:16]} (27. Rd4 $16) 27... Rd6 {[%emt 0:
07:46] Against Qd3} 28. Rxd6 {[%emt 0:03:20]} cxd6 {[%emt 0:00:05]} 29. Nxd7 {
[%emt 0:00:29]} (29. Nxa6 $16 Bb5 30. Nb4) 29... Qxd7 {[%emt 0:00:00] Endgame
KQR-KQR} 30. e3 {[%emt 0:00:18]} (30. Qd3 $5 {[%cal Rd3a6]}) 30... Re5 {
[%emt 0:01:44]} 31. Rd1 {[%emt 0:05:39]} Qf5 {[%emt 0:00:00]} 32. Qxd6 {
[%emt 0:10:20]} Rxa5 {[%emt 0:00:11]} 33. e4 {[%emt 0:00:30]} Qb5 {[%emt 0:02:
28]} 34. Rc1 {[%emt 0:01:24]} Kh7 {[%emt 0:01:00]} 35. Qc6 {[%emt 0:01:21]} Qb4
{[%emt 0:01:35]} 36. Qc4 {[%emt 0:00:58]} Qb7 {[%emt 0:00:00]} 37. Qc6 {
[%emt 0:00:21]} Qb8 {[%emt 0:00:36]} 38. Qc7 {[%emt 0:00:17]} Qb5 {[%emt 0:00:
15]} 39. Qc2 {[%emt 0:00:35]} Qe5 {[%emt 0:00:46]} 40. Qc3 {[%emt 0:00:21]} Qb5
{[%emt 0:01:13]} 41. Qc2 {[%emt 0:04:12] Threatens to win with e5+.} Qe5 {
[%emt 0:03:09]} 42. f4 {[%emt 0:11:38]} Qd4+ {[%emt 0:00:05]} 43. Kg2 {[%emt 0:
01:05]} Qa4 {[%emt 0:01:28]} 44. Qd3 {[%emt 0:03:32] White wants to mate with
e5+.} Qb5 {[%emt 0:04:15]} 45. Qxb5 {[%emt 0:01:36]} Rxb5 $11 {[%emt 0:01:07]
KR-KR} 46. Rc6 {[%emt 0:00:08]} a5 {[%emt 0:01:10]} 47. Ra6 {[%emt 0:00:11]}
Rb2+ {[%emt 0:00:09]} 48. Kf3 {[%emt 0:00:25]} Rb3+ {[%emt 0:00:00]} 49. Kg4 {
[%emt 0:00:48]} Rb5 {[%emt 0:00:39]} 50. f5 {[%emt 0:02:01]} Re5 {[%emt 0:04:
49]} 51. Kf4 {[%emt 0:00:32]} h5 {[%emt 0:00:16]} 52. h3 {[%emt 0:01:55]} Rb5 {
[%emt 0:02:18]} 53. g4 {[%emt 0:00:34]} hxg4 {[%emt 0:00:00]} 54. hxg4 {
[%emt 0:00:15]} g5+ {[%emt 0:01:14]} 55. Ke3 {[%emt 0:01:03]} Kg7 {[%emt 0:01:
45]} 56. Ra7+ {[%emt 0:00:05]} Kf8 {[%emt 0:00:04]} 57. Kd4 {[%emt 0:00:16]}
Re5 {[%emt 0:00:23]} 58. Rc7 {[%emt 0:02:43]} Ke8 {[%emt 0:00:00]} 59. Rg7 {
[%emt 0:01:54][%cal Yg7g5] Hoping for Rxg5!} Kf8 $2 {[%emt 0:00:00] [#]} (59...
Rb5 $11) 60. Rxg5 $3 $18 {[%emt 0:01:03]} a4 {[%emt 0:01:33]} (60... Re7 61.
Rg6) 61. Rg6 $1 {[%emt 0:00:43]} Ra5 {[%emt 0:01:51]} 62. Rxf6+ {[%emt 0:00:04]
} Kg7 {[%emt 0:00:18]} 63. Rg6+ {[%emt 0:00:51]} Kf7 {[%emt 0:00:04]} 64. Rb6 {
[%emt 0:01:24]} a3 {[%emt 0:00:00][%cal Ya4a3,Ya3a2] [#]} 65. Rb7+ $2 {[%emt 0:
00:02]} ({Only move:} 65. Rb1 $1 $18 a2 66. Ra1) 65... Kf6 $1 $11 {[%emt 0:00:
49]} 66. e5+ {[%emt 0:00:00]} Kg5 {[%emt 0:00:09] ( -> ...a2)} 67. Rb1 {
[%emt 0:00:14] e6 is the strong threat.} ({Avoid the trap} 67. Rg7+ $2 Kf4 68.
Rh7 a2 $19) 67... a2 {[%emt 0:00:20]} 68. Ra1 {[%emt 0:00:03] aiming for e6.}
Kxg4 $2 {[%emt 0:00:59]} (68... Ra4+ $11 {and Black stays safe.} 69. Kd5 Ra5+
70. Kd6 Ra6+ 71. Kc7 Kxg4) 69. f6 $18 {[%emt 0:01:00][%cal Yf5f6,Yf6f7]
Threatening mate with f7.} Kf5 {[%emt 0:00:19]} 70. f7 {[%emt 0:02:04] White
mates.} ({Inferior is} 70. Rf1+ Ke6 71. f7 Ra8 $11) 70... Ra8 {[%emt 0:00:06] 
[#]} 71. Rxa2 $3 {[%emt 0:00:41]} Rd8+ {[%emt 0:00:37]} 72. Kc5 {[%emt 0:00:16]
} Kxe5 {[%emt 0:00:15] [#]} 73. Re2+ $1 {[%emt 0:00:07]} Kf6 {[%emt 0:00:35]}
74. Re8 {[%emt 0:00:05] Weighted Error Value: White=0.17 (very precise) /
Black=0.39} 1-0

[Event "44th Chess Olympiad Women 2022"]
[Site "Chennai"]
[Date "2022.08.03"]
[Round "6.20"]
[White "Otazo Sanchez, Annyd Gabriela"]
[Black "Krush, Irina"]
[Result "0-1"]
[WhiteElo "1932"]
[BlackElo "2430"]
[Annotator "TA"]
[PlyCount "64"]
[EventDate "2022.??.??"]
[TimeControl "60"]

{[%evp 20,64,36,0,0,-8,-3,-6,0,-13,-12,-10,-12,-40,0,0,0,-14,-20,-20,-20,-20,
-21,-24,-12,-28,-36,-39,-29,-32,-30,-31,-12,-56,-38,-93,-35,-28,-33,-357,-343,
-924,-882,-29986,-29987,-29984,-29983]} 1. e4 {[%emt 0:00:01]} c5 {[%emt 0:00:
00]} 2. c3 {[%emt 0:00:09]} d5 {[%emt 0:00:11]} 3. exd5 {[%emt 0:00:05]} Qxd5 {
[%emt 0:00:09]} 4. d4 {[%emt 0:00:06]} Nf6 {[%emt 0:00:10]} 5. Nf3 {[%emt 0:00:
00]} e6 {[%emt 0:00:12]} 6. Be2 {[%emt 0:01:10]} Nc6 {[%emt 0:00:52]} 7. O-O {
[%emt 0:00:25]} Be7 {[%emt 0:04:15]} 8. Be3 {[%emt 0:00:49]} cxd4 {[%emt 0:00:
00]} 9. cxd4 {[%emt 0:00:11]} O-O {[%emt 0:00:49]} 10. Nc3 {[%emt 0:00:06]} Qd8
{[%emt 0:04:37]} 11. h3 {[%emt 0:01:07]} Nb4 {[%emt 0:01:48] B22: Sicilian: 2
c3.} 12. Qb3 {[%emt 0:02:42]} b6 {[%emt 0:01:30]} 13. Ne5 {[%emt 0:05:12]} Bb7
{[%emt 0:00:15] The position is equal.} 14. Rac1 {[%emt 0:00:45]} Rc8 {[%emt 0:
00:00]} 15. Rfd1 {[%emt 0:02:20]} Nbd5 {[%emt 0:01:12] [#]} 16. Qa4 $146 {
[%emt 0:10:02]} ({Predecessor:} 16. Bf3 Nxc3 17. Rxc3 Bxf3 18. Nxf3 Nd5 19.
Rxc8 Qxc8 20. Rc1 Qb7 21. Qc4 Bf6 22. Bg5 Bxg5 23. Nxg5 {0-1 (61) Tan,J (1555)
-Pham,P Chiangmai 2013}) 16... a6 {[%emt 0:13:21]} 17. Nxd5 {[%emt 0:07:04]}
Nxd5 {[%emt 0:00:16]} ({But not} 17... Qxd5 18. Bf3 Ne4 19. Qd7 Rxc1 20. Rxc1
$14) 18. Rxc8 {[%emt 0:09:58]} Qxc8 {[%emt 0:01:51]} 19. Rc1 {[%emt 0:03:51]}
Qa8 {[%emt 0:00:18]} 20. Bf3 {[%emt 0:05:21]} b5 {[%emt 0:11:07]} 21. Qb3 {
[%emt 0:00:33]} Rd8 {[%emt 0:01:51]} 22. Nd3 {[%emt 0:12:43]} (22. Qc2 {
seems wilder.} Rc8 23. Qe4 f5 24. Qb1) 22... Nxe3 {[%emt 0:06:39]} 23. Bxb7 {
[%emt 0:00:12]} Qxb7 {[%emt 0:00:07][%csl Ge3][%cal Rb7g2] [#]} 24. fxe3 {
[%emt 0:00:03]} Bg5 {[%emt 0:01:09]} 25. Nc5 {[%emt 0:01:05]} Qc6 {[%emt 0:00:
00]} 26. Rc3 {[%emt 0:03:07]} h5 {[%emt 0:01:07][%cal Ye6e5] White must now
prevent ...e5!} 27. Qa3 {[%emt 0:08:12]} (27. Kf1 $15) 27... e5 {[%emt 0:04:34]
} (27... a5 $17 {And now ...b4 would win.} 28. Qxa5 Ra8) 28. Qxa6 $15 {[%emt 0:
00:00]} Qd5 {[%emt 0:00:11]} 29. Nb3 {[%emt 0:09:15] [#] Loses the game.} ({
Don't go for} 29. Qxb5 $2 exd4 30. Rc2 Bxe3+ 31. Kh1 Rc8 $19) ({Only move:} 29.
Qb7 $1 $15) 29... Qe4 $19 {[%emt 0:07:22][%cal Re5d4]} 30. Qb6 {[%emt 0:06:54]}
(30. Kf2 b4 31. Rd3) 30... exd4 {[%emt 0:02:02][%cal Ye5d4,Yd4c3]} 31. Nc5 {
[%emt 0:01:02]} Qb1+ {[%emt 0:00:40]} 32. Kh2 {[%emt 0:00:23]} dxc3 {[%emt 0:
00:11] Weighted Error Value: White=0.78/Black=0.09 (flawless)} 0-1

[Event "44th Chess Olympiad Women 2022"]
[Site "Chennai"]
[Date "2022.08.03"]
[Round "6.20"]
[White "Perez Hernandez, Vicmary C."]
[Black "Zatonskih, Anna"]
[Result "0-1"]
[WhiteElo "1862"]
[BlackElo "2383"]
[Annotator "TA"]
[PlyCount "60"]
[EventDate "2022.??.??"]
[TimeControl "60"]

{[%evp 13,60,-6,-14,-7,-11,-42,-55,-150,-148,-166,-152,-158,-151,-185,-189,
-174,-181,-195,-160,-152,-108,-205,-184,-259,-249,-248,-223,-226,-149,-400,
-395,-385,-380,-534,-539,-588,-580,-834,-694,-797,-652,-647,-630,-649,-649,
-629,-629,-614,-521]} 1. e4 {[%emt 0:00:06]} e6 {[%emt 0:00:03]} 2. d4 {
[%emt 0:00:34]} d5 {[%emt 0:00:06]} 3. e5 {[%emt 0:00:15]} c5 {[%emt 0:00:06]
[%cal Yc7c5,Yc5c4,Yc4b3]} 4. c3 {[%emt 0:00:33]} Nc6 {[%emt 0:00:06]} 5. Nf3 {
[%emt 0:00:15]} Bd7 {[%emt 0:00:06]} 6. a3 {[%emt 0:00:34]} c4 {[%emt 0:00:14]}
7. Nbd2 {[%emt 0:00:43] 7.g3 is not played anymore.} Na5 {[%emt 0:00:15]} 8.
Rb1 {[%emt 0:00:52] C02: French: Advance Variation.} Ne7 {[%emt 0:02:06] was
the old line (8...Qc7).} 9. b3 {[%emt 0:07:57]} cxb3 {[%emt 0:02:11]} 10. c4 {
[%emt 0:00:27]} (10. Nxb3 $15 Ba4 11. Nfd2) 10... Ba4 $17 {[%emt 0:07:50]} 11.
Bb2 {[%emt 0:07:10] [#]} dxc4 $146 {[%emt 0:25:26]} ({Predecessor:} 11... Nec6
12. Bd3 Be7 13. O-O dxc4 14. Nxc4 Nxc4 15. Bxc4 Na5 16. Bd3 O-O 17. Qe2 Bc6 {
1-0 (62) Romero Echeverria,A (2054)-Heredia Serrano,C (2095) Asuncion 2010})
12. Nxc4 {[%emt 0:00:54] [#] aiming for Nd6+.} Nd5 {[%emt 0:00:15]} 13. Qd2 {
[%emt 0:10:07]} Nxc4 {[%emt 0:11:38]} 14. Bxc4 {[%emt 0:00:16]} Rc8 {[%emt 0:
06:44]} 15. Rc1 {[%emt 0:07:41]} Be7 {[%emt 0:00:00]} 16. O-O {[%emt 0:07:35]}
O-O {[%emt 0:00:27] Black is more active.} 17. Bd3 {[%emt 0:15:39]} (17. Qd3
$17 {was called for.}) 17... Qd7 {[%emt 0:03:35]} 18. Rxc8 {[%emt 0:07:51]} (
18. Rfd1 {keeps fighting.}) 18... Rxc8 $19 {[%emt 0:00:00]} 19. Rc1 {[%emt 0:
00:46]} Rxc1+ {[%emt 0:14:01]} 20. Qxc1 {[%emt 0:00:00]} Bb5 {[%emt 0:00:23]}
21. Qd1 {[%emt 0:08:41] White does not recover from this.} (21. Bc4 $17) 21...
Bxd3 {[%emt 0:02:31]} 22. Qxd3 {[%emt 0:00:08]} Qa4 {[%emt 0:00:29]} 23. Qd1 {
[%emt 0:03:15]} (23. Nd2 $142 Bxa3 24. Bxa3 Qxa3 25. Qxb3 Qa1+ 26. Nf1) 23...
Qc4 {[%emt 0:06:28] Black is clearly winning.} 24. Nd2 {[%emt 0:03:40]} Qd3 {
[%emt 0:00:09] [#] Threatens to win with ...Bg5.} 25. Qc1 {[%emt 0:01:12]} h6 {
[%emt 0:00:51] White must now prevent ...Bg5.} 26. Nf3 {[%emt 0:00:56]} b5 {
[%emt 0:02:15]} 27. Qd2 {[%emt 0:03:32]} Qb1+ {[%emt 0:05:15]} 28. Qc1 {
[%emt 0:02:09]} Qxc1+ {[%emt 0:00:00]} 29. Bxc1 {[%emt 0:00:02]} Nc3 {[%emt 0:
00:05] Hoping for ...Ne2+.} 30. Kf1 {[%emt 0:01:26] Prevents Ne2.} Na4 {
[%emt 0:00:17] Weighted Error Value: White=0.67/Black=0.21 (precise)} 0-1

[Event "44th Chess Olympiad Women 2022"]
[Site "Chennai"]
[Date "2022.08.03"]
[Round "6.20"]
[White "Tokhirjonova, Gulrukhbegim"]
[Black "Varela La Madrid, Tilsia Carolina"]
[Result "1-0"]
[WhiteElo "2329"]
[BlackElo "2079"]
[Annotator "TA"]
[PlyCount "99"]
[EventDate "2022.??.??"]
[TimeControl "60"]

{[%evp 9,99,-28,-25,-24,0,-4,0,0,0,0,0,-21,-18,-59,-31,-35,19,15,10,11,11,-45,
-28,-49,54,62,53,68,113,103,179,181,181,164,171,79,70,63,63,64,97,75,135,127,
145,32,19,28,16,0,84,0,0,0,24,21,74,-70,-89,-174,-35,-55,-52,-36,-16,-9,0,-100,
8,8,8,8,8,8,8,8,8,0,0,0,0,0,0,0,0,0,0,0,2059,1640,29998,29999]} 1. e4 {[%emt 0:
00:00]} e5 {[%emt 0:00:17]} 2. d4 {[%emt 0:00:17]} exd4 {[%emt 0:00:33]} 3.
Qxd4 {[%emt 0:00:17]} Nc6 {[%emt 0:01:24]} 4. Qc4 {[%emt 0:00:25]} Nf6 {
[%emt 0:03:27]} 5. Nc3 {[%emt 0:01:15]} Bb4 {[%emt 0:11:07]} 6. Bd2 {[%emt 0:
00:00] C22: Centre Game.} d6 {[%emt 0:01:02]} 7. O-O-O {[%emt 0:02:09]} Be6 {
[%emt 0:02:06]} 8. Qe2 {[%emt 0:02:57] The position is equal.} Qe7 {[%emt 0:00:
00]} 9. a3 {[%emt 0:02:35]} Ba5 {[%emt 0:06:22]} 10. f3 {[%emt 0:02:27]} O-O-O
{[%emt 0:01:00]} 11. g4 {[%emt 0:02:59][%cal Yg2g4,Yg4g5] [#]} Kb8 $146 {
[%emt 0:02:54]} (11... d5 $5 {[%cal Rd5e4]} 12. g5 Bxc3 13. Bxc3 Nh5 $15) ({
Predecessor:} 11... h6 12. Nh3 Nd4 13. Qf2 Bb6 14. Be3 Nxf3 15. Bxb6 axb6 16.
Qxf3 Bxg4 17. Qd3 Bxd1 18. Qxd1 {1-0 (79) Xu,X (2441)-Xiang,Z (2313) Shenyang
2019}) 12. Nh3 {[%emt 0:04:49]} h5 {[%emt 0:11:15]} (12... h6 $15) 13. g5 $11 {
[%emt 0:03:47]} Nd7 {[%emt 0:00:26]} 14. b4 {[%emt 0:13:02]} Nd4 {[%emt 0:00:
00]} 15. Qf2 {[%emt 0:03:53]} (15. Qg2 $11) 15... Bb6 $15 {[%emt 0:01:17][%cal
Yd4b3]} 16. Be3 {[%emt 0:00:25]} c5 {[%emt 0:01:39]} (16... Nc6 $15) 17. Nf4
$14 {[%emt 0:02:38]} Nc6 {[%emt 0:03:34]} 18. b5 $36 {[%emt 0:10:35] White
fights for an advantage.} Na5 {[%emt 0:05:14]} 19. Ncd5 {[%emt 0:00:44]} Qe8 {
[%emt 0:06:54]} (19... Bxd5 $16 {might work better.} 20. Nxd5 (20. Rxd5 Qe8 $14
) 20... Qe5) 20. Bd2 $1 $18 {[%emt 0:08:08]} Ne5 {[%emt 0:01:20]} 21. Bc3 {
[%emt 0:05:30]} Nac4 {[%emt 0:01:48]} 22. a4 {[%emt 0:00:42]} (22. Bxc4 $18 {
is more deadly.} Nxc4 23. a4 (23. Bxg7 Rg8 $11)) 22... Ba5 $16 {[%emt 0:00:00]}
23. Bxa5 {[%emt 0:00:48]} Nxa5 {[%emt 0:00:07]} 24. Qe1 {[%emt 0:00:11]} Nac4 {
[%emt 0:05:57]} 25. Qc3 {[%emt 0:02:06]} Nb6 {[%emt 0:01:29]} (25... Bxd5 $142
26. Nxd5 Nb6) 26. Nxb6 {[%emt 0:03:48] White is more active.} axb6 {[%emt 0:00:
08]} 27. Nd5 {[%emt 0:00:09]} (27. a5 $1 $16 {[%cal Ra5b6]}) 27... Bxd5 $14 {
[%emt 0:00:24]} 28. Rxd5 {[%emt 0:00:07]} Qe7 {[%emt 0:03:14]} 29. Rg1 {
[%emt 0:02:04]} f6 {[%emt 0:03:35] [#]} (29... f5 $11) 30. h4 {[%emt 0:00:00]}
({White should try} 30. a5 $1 $16 {[%cal Ra5b6]}) 30... Rhf8 {[%emt 0:00:00]
aiming for ...fxg5.} 31. Be2 {[%emt 0:00:31]} Ng6 {[%emt 0:01:03]} 32. gxf6 {
[%emt 0:03:36]} Rxf6 {[%emt 0:02:05]} (32... Qxf6 $11 33. Qxf6 Rxf6) 33. Bd1 {
[%emt 0:01:44]} (33. Rxh5 $2 Nf4 34. Bc4 Nxh5 $19) ({Better is} 33. Rdg5 $16
Nf4 34. Bc4) 33... Nf4 $15 {[%emt 0:01:23]} 34. Rf5 {[%emt 0:04:17]} (34. Rdg5
$17) 34... Rdf8 {[%emt 0:02:00]} (34... Rxf5 $19 35. exf5 Qxh4 36. Qxg7 Nh3)
35. Rxf6 {[%emt 0:00:33]} Rxf6 {[%emt 0:00:10]} 36. a5 {[%emt 0:00:51]} Kc7 {
[%emt 0:03:53]} (36... Ka7 $5 {[%cal Rf6g6]}) 37. Rg5 {[%emt 0:00:42]} g6 {
[%emt 0:00:49][%cal Yg7g6,Yg6f5]} 38. e5 {[%emt 0:01:17]} (38. Qa1 $11) 38...
Rf5 {[%emt 0:01:23]} (38... Re6 $17 {[%cal Re6e5]} 39. exd6+ Qxd6 40. Qg7+ Re7)
39. Rxf5 {[%emt 0:05:06]} gxf5 {[%emt 0:00:07]} 40. exd6+ {[%emt 0:00:00]} Qxd6
$11 {[%emt 0:01:13] Endgame KQB-KQN} 41. Qg7+ {[%emt 0:00:00]} Kb8 {[%emt 0:03:
02]} 42. axb6 {[%emt 0:00:00]} Qxb6 {[%emt 0:00:51]} 43. Qf8+ {[%emt 0:00:00]}
Ka7 {[%emt 0:01:51]} 44. Qxf5 {[%emt 0:00:00]} Qd6 {[%emt 0:00:19]} 45. c3 {
[%emt 0:00:00]} Kb6 {[%emt 0:05:28]} 46. Bc2 {[%emt 0:00:00]} Kxb5 {[%emt 0:01:
04]} 47. Be4 {[%emt 0:00:00]} b6 {[%emt 0:12:42]} ({Don't do} 47... Ne2+ 48.
Kc2 Ng3 49. Qf7 Nxe4 50. Qxb7+ (50. fxe4 Qc6 $11) 50... Ka5 51. Qa7+ (51. Qxe4
Qf6 $16) (51. fxe4 Qf4 $16) 51... Kb5 52. Qb7+ (52. fxe4 Qh2+ 53. Kb1 Qh1+ 54.
Kb2 Qg2+ 55. Kb3 Qxe4 $11) 52... Ka5 53. fxe4 $16 (53. Qxe4 Qf6 $16)) 48. Kc2 {
[%emt 0:00:00]} Qc7 $2 {[%emt 0:03:04] [#]} (48... Ng2 $11 49. Bd3+ (49. Qxh5 {
gets mated.} Ne3+ 50. Kb2 Qd2+ 51. Kb3 Qd1+ 52. Ka2 Qa4+ 53. Kb1 Qb3+ 54. Ka1
Qxc3+ 55. Kb1 Nc4 56. Qe8+ Kb4) 49... Ka5) 49. Qf8 $1 $18 {[%emt 0:00:00] Qe8+
would kill now.} c4 {[%emt 0:00:00]} 50. Qb4+ {[%emt 0:00:00] Weighted Error
Value: White=0.25 (precise) / Black=0.41} 1-0

[Event "44th Chess Olympiad Women 2022"]
[Site "Chennai"]
[Date "2022.08.03"]
[Round "6.20"]
[White "Yip, Carissa"]
[Black "Rovira Contreras, Tairu Manuela"]
[Result "1-0"]
[WhiteElo "2416"]
[BlackElo "2036"]
[Annotator "TA"]
[PlyCount "55"]
[EventDate "2022.??.??"]
[TimeControl "60"]

{[%evp 9,55,-18,-15,-31,-12,-20,0,-11,14,0,0,5,26,8,28,26,32,27,77,102,83,89,
85,40,67,58,121,50,131,110,242,218,490,93,353,373,757,743,1002,986,815,706,
1643,1590,29988,29989,29989,1529]} 1. e4 {[%emt 0:00:17]} e5 {[%emt 0:00:06]}
2. d4 {[%emt 0:01:33]} exd4 {[%emt 0:00:15]} 3. Qxd4 {[%emt 0:00:37]} Nc6 {
[%emt 0:00:32]} 4. Qc4 {[%emt 0:00:43]} Nf6 {[%emt 0:03:39]} 5. Nc3 {[%emt 0:
00:00]} Bb4 {[%emt 0:05:51]} 6. Bd2 {[%emt 0:00:41] C22: Centre Game.} O-O {
[%emt 0:00:41] White must now prevent ...Bxc3.} 7. O-O-O {[%emt 0:02:04]} Re8 {
[%emt 0:05:35]} 8. f3 {[%emt 0:00:59] The position is equal.} a6 {[%emt 0:00:
00]} 9. g4 {[%emt 0:02:31][%cal Yg2g4,Yg4g5]} b5 {[%emt 0:11:29]} 10. Qe2 {
[%emt 0:01:27] [#]} Bb7 $146 {[%emt 0:12:03]} ({Predecessor:} 10... d5 11. g5
Bxc3 12. Bxc3 Nh5 13. Qg2 b4 14. Bd2 Qd6 15. Ne2 Be6 16. Ng3 Nf4 {0-1 (44)
Kosakowski,J (2418)-Grabarczyk,M (2368) Warsaw 2020}) 11. Qf2 {[%emt 0:29:24]}
(11. g5 $5 {[%cal Rg5f6]} Nh5 12. Nh3 $11) 11... Ne5 {[%emt 0:15:07][%cal
Ye5g4]} 12. g5 {[%emt 0:17:16]} Bxc3 {[%emt 0:16:13]} 13. Bxc3 {[%emt 0:08:22]}
Nxe4 {[%emt 0:01:39]} 14. fxe4 $16 {[%emt 0:00:04]} Bxe4 {[%emt 0:00:16] [#]}
15. Bxe5 $1 {[%emt 0:05:24][%cal Ye5f6] Strongly threatening Bf6!} Bxh1 {
[%emt 0:09:22]} 16. Qg3 {[%emt 0:01:40] White is much more active.} d6 {
[%emt 0:00:34]} 17. Bc3 {[%emt 0:02:58] White has compensation.} Be4 {[%emt 0:
01:13]} (17... Qe7 $14) 18. Ne2 {[%emt 0:01:01]} (18. Nh3 $16) 18... Qc8 {
[%emt 0:05:46]} (18... a5 $14) 19. Nf4 {[%emt 0:00:49] aiming for Nh5.} Bg6 {
[%emt 0:02:56] Prevents Nh5.} (19... Qb7 $16 {might work better.}) 20. h4 $18 {
[%emt 0:02:21][%cal Yh2h4,Yh4h5] Hoping for h5.} Rb8 $2 {[%emt 0:00:00]} (20...
Qf5 21. Nxg6 hxg6) 21. Bh3 $2 {[%emt 0:02:41] A strong pair of Bishops.} (21.
h5 $18 {and the rest is easy.} Bf5 22. g6) 21... Qb7 $2 {[%emt 0:01:32]} (21...
Bf5 $16 {was necessary.}) 22. h5 {[%emt 0:00:00]} Be4 {[%emt 0:00:17]} (22...
b4) 23. g6 {[%emt 0:00:47]} f6 {[%emt 0:02:38]} 24. Be6+ {[%emt 0:01:20]} Rxe6
{[%emt 0:00:31]} 25. Nxe6 {[%emt 0:01:08]} h6 {[%emt 0:00:22]} 26. Qf4 {
[%emt 0:01:17][%cal Ye6g7] White threatens Nxg7! and mate.} c5 {[%emt 0:00:27]}
27. Qxd6 {[%emt 0:02:06]} Re8 {[%emt 0:01:04]} 28. Nxc5 {[%emt 0:00:22]
Weighted Error Value: White=0.50/Black=1.04} (28. Nc7 $142 Bxg6 29. hxg6 Rf8 {
[#]} 30. Bxf6 $1 Qc8 31. Be7 Qh3 32. Bxf8 Kh8 33. Qd8 Qe3+ 34. Kb1 Qf4 35.
Bxc5+ Qf8 36. Qxf8#) 1-0